[Event "Titled Tuesday Blitz January 31 Early 2023"]
[White "Grot, Blazej"]
[Black "Kozionov, Kirill"]
[WhiteFideId "21835845"]
[BlackFideId "24101729"]
[WhiteElo "1990"]
[BlackElo "2444"]
[Result "1-0"]
[Round "01"]
[TimeControl "180+2"]
[Date "2023.01.31"]
[WhiteClock "0:00:05"]
[BlackClock "0:00:05"]

1. e4 {[%clk 0:02:55]}  e5 {[%clk 0:02:56]} 2. Nf3 {[%clk 0:02:55]}  d6 {[%clk 0:02:57]} 3. d4 {[%clk 0:02:50]}  exd4 {[%clk 0:02:57]} 4. Qxd4 {[%clk 0:02:46]}  Nf6 {[%clk 0:02:54]} 5. Nc3 {[%clk 0:02:41]}  Be7 {[%clk 0:02:54]} 6. Bf4 {[%clk 0:02:36]}  O-O {[%clk 0:02:52]} 7. O-O-O {[%clk 0:02:34]}  Nc6 {[%clk 0:02:42]} 8. Qe3 {[%clk 0:02:29]}  Ng4 {[%clk 0:02:40]} 9. Qd2 {[%clk 0:02:25]}  Bf6 {[%clk 0:02:38]} 10. Nd5 {[%clk 0:02:21]}  Re8 {[%clk 0:02:35]} 11. h3 {[%clk 0:02:16]}  Nge5 {[%clk 0:02:35]} 12. Nxe5 {[%clk 0:02:12]}  Nxe5 {[%clk 0:02:28]} 13. Be3 {[%clk 0:02:11]}  Nc6 {[%clk 0:02:17]} 14. Nxf6+ {[%clk 0:02:09]}  Qxf6 {[%clk 0:02:17]} 15. f3 {[%clk 0:02:06]}  Be6 {[%clk 0:02:17]} 16. Kb1 {[%clk 0:02:06]}  h6 {[%clk 0:02:10]} 17. g4 {[%clk 0:01:57]}  Qxf3 {[%clk 0:02:02]} 18. Bd3 {[%clk 0:01:57]}  Qf6 {[%clk 0:01:49]} 19. g5 {[%clk 0:01:55]}  hxg5 {[%clk 0:01:49]} 20. Bxg5 {[%clk 0:01:56]}  Qe5 {[%clk 0:01:50]} 21. Rhg1 {[%clk 0:01:48]}  Kf8 {[%clk 0:01:45]} 22. b3 {[%clk 0:01:39]}  a5 {[%clk 0:01:39]} 23. Qf2 {[%clk 0:01:38]}  a4 {[%clk 0:01:35]} 24. Qh4 {[%clk 0:01:33]}  f6 {[%clk 0:01:14]} 25. Bf4 {[%clk 0:01:25]}  Qc3 {[%clk 0:01:00]} 26. Qh7 {[%clk 0:01:24]}  Ke7 {[%clk 0:00:45]} 27. Bc4 {[%clk 0:01:07]}  axb3 {[%clk 0:00:24]} 28. cxb3 {[%clk 0:01:01]}  Rxa2 {[%clk 0:00:22]} 29. Rxg7+ {[%clk 0:00:46]}  Kd8 {[%clk 0:00:21]} 30. Kxa2 {[%clk 0:00:46]}  Qc2+ {[%clk 0:00:08]} 31. Ka3 {[%clk 0:00:24]}  Qxd1 {[%clk 0:00:09]} 32. Kb2 {[%clk 0:00:20]}  Qd4+ {[%clk 0:00:07]} 33. Ka2 {[%clk 0:00:19]}  Nb4+ {[%clk 0:00:06]} 34. Kb1 {[%clk 0:00:15]}  Qd1+ {[%clk 0:00:04]} 35. Kb2 {[%clk 0:00:15]}  Qc2+ {[%clk 0:00:04]} 36. Ka3 {[%clk 0:00:10]}  Nc6 {[%clk 0:00:02]} 37. Bxe6 {[%clk 0:00:05]}  Qc5+ {[%clk 0:00:02]} 38. Kb2 {[%clk 0:00:05]}  Qd4+ {[%clk 0:00:02]} 39. Ka3 {[%clk 0:00:05]}  Qc5+ {[%clk 0:00:02]} 40. Kb2 {[%clk 0:00:05]}  Qf2+ {[%clk 0:00:03]} 41. Ka3 {[%clk 0:00:05]}  Qa7+ {[%clk 0:00:03]} 42. Kb2 {[%clk 0:00:05]}  Ne5 {[%clk 0:00:02]} 43. Rd7+ {[%clk 0:00:04]}  Kc8 {[%clk 0:00:03]} 44. Rxc7+ {[%clk 0:00:04]}  Kb8 {[%clk 0:00:03]} 45. Bxe5 {[%clk 0:00:04]}  Qf2+ {[%clk 0:00:03]} 46. Ka3 {[%clk 0:00:03]}  fxe5 {[%clk 0:00:03]} 47. Rxb7+ {[%clk 0:00:03]}  Ka8 {[%clk 0:00:03]} 48. Qc7 {[%clk 0:00:02]}  Qc5+ {[%clk 0:00:02]} 49. Qxc5 {[%clk 0:00:01]}  dxc5 {[%clk 0:00:03]} 50. Bd5 {[%clk 0:00:02]}  Rc8 {[%clk 0:00:02]} 51. Rc7+ {[%clk 0:00:03]}  Kb8 {[%clk 0:00:03]} 52. Rxc8+ {[%clk 0:00:04]}  Kxc8 {[%clk 0:00:03]} 53. Ka4 {[%clk 0:00:04]}  Kd7 {[%clk 0:00:04]} 54. Kb5 {[%clk 0:00:05]}  Kd6 {[%clk 0:00:05]} 55. Kc4 {[%clk 0:00:05]} 1-0


[Site "https://www.chess.com"]

[Event "Titled Tuesday Blitz January 31 Early 2023"]
[White "Wieczorek, Oskar"]
[Black "Andreev, Konstantin"]
[WhiteFideId "1133950"]
[BlackFideId "24239305"]
[WhiteElo "2512"]
[BlackElo "2195"]
[Result "1-0"]
[Round "01"]
[TimeControl "180+2"]
[Date "2023.01.31"]
[WhiteClock "0:00:09"]
[BlackClock "0:00:18"]

1. e4 {[%clk 0:03:00]}  c5 {[%clk 0:02:59]} 2. Nf3 {[%clk 0:03:00]}  e6 {[%clk 0:03:00]} 3. g3 {[%clk 0:03:00]}  Nc6 {[%clk 0:03:00]} 4. Bg2 {[%clk 0:02:58]}  g6 {[%clk 0:03:00]} 5. O-O {[%clk 0:02:57]}  Bg7 {[%clk 0:03:01]} 6. c3 {[%clk 0:02:57]}  Nge7 {[%clk 0:03:00]} 7. d4 {[%clk 0:02:56]}  cxd4 {[%clk 0:03:01]} 8. cxd4 {[%clk 0:02:57]}  d6 {[%clk 0:03:01]} 9. Nc3 {[%clk 0:02:57]}  O-O {[%clk 0:03:00]} 10. h4 {[%clk 0:02:34]}  h5 {[%clk 0:02:58]} 11. Bg5 {[%clk 0:02:32]}  a6 {[%clk 0:02:58]} 12. Re1 {[%clk 0:02:29]}  b5 {[%clk 0:02:55]} 13. d5 {[%clk 0:02:29]}  Ne5 {[%clk 0:02:51]} 14. Nxe5 {[%clk 0:01:52]}  Bxe5 {[%clk 0:02:52]} 15. Qd2 {[%clk 0:01:45]}  b4 {[%clk 0:02:37]} 16. Ne2 {[%clk 0:01:41]}  exd5 {[%clk 0:02:37]} 17. exd5 {[%clk 0:01:42]}  Ra7 {[%clk 0:02:25]} 18. Nd4 {[%clk 0:01:36]}  Qb6 {[%clk 0:01:42]} 19. Nc6 {[%clk 0:01:24]}  Nxc6 {[%clk 0:01:38]} 20. dxc6 {[%clk 0:01:25]}  Qc7 {[%clk 0:01:28]} 21. Rac1 {[%clk 0:01:10]}  Be6 {[%clk 0:01:27]} 22. Rxe5 {[%clk 0:01:04]}  dxe5 {[%clk 0:01:25]} 23. Bf6 {[%clk 0:01:05]}  Kh7 {[%clk 0:01:10]} 24. Qe3 {[%clk 0:01:05]}  Raa8 {[%clk 0:00:58]} 25. Bxe5 {[%clk 0:01:05]}  Qa5 {[%clk 0:00:55]} 26. Rc5 {[%clk 0:00:54]}  Qxa2 {[%clk 0:00:53]} 27. Bd4 {[%clk 0:00:54]}  Rae8 {[%clk 0:00:39]} 28. Kh2 {[%clk 0:00:11]}  Qb3 {[%clk 0:00:32]} 29. Rxh5+ {[%clk 0:00:11]}  gxh5 {[%clk 0:00:31]} 30. Qg5 {[%clk 0:00:10]}  f6 {[%clk 0:00:21]} 31. Be4+ {[%clk 0:00:10]}  Kh8 {[%clk 0:00:19]} 32. Qh6+ {[%clk 0:00:08]}  Kg8 {[%clk 0:00:18]} 33. Qh7# {[%clk 0:00:09]} 1-0


[Site "https://www.chess.com"]

[Event "Titled Tuesday Blitz January 31 Early 2023"]
[White "Ramirez Vido, Robert Yorisan"]
[Black "Hasangatin, Ramil"]
[WhiteFideId "3513823"]
[BlackFideId "4122160"]
[WhiteElo "2015"]
[BlackElo "2457"]
[Result "0-1"]
[Round "01"]
[TimeControl "180+2"]
[Date "2023.01.31"]
[WhiteClock "0:00:07"]
[BlackClock "0:01:14"]

1. f4 {[%clk 0:02:58]}  d5 {[%clk 0:02:54]} 2. Nf3 {[%clk 0:02:57]}  g6 {[%clk 0:02:54]} 3. g3 {[%clk 0:02:57]}  Bg7 {[%clk 0:02:51]} 4. Bg2 {[%clk 0:02:58]}  c6 {[%clk 0:02:51]} 5. d3 {[%clk 0:02:59]}  Qb6 {[%clk 0:02:50]} 6. c3 {[%clk 0:02:55]}  h5 {[%clk 0:02:45]} 7. e4 {[%clk 0:02:45]}  Nf6 {[%clk 0:02:39]} 8. e5 {[%clk 0:02:42]}  Ng4 {[%clk 0:02:36]} 9. Qe2 {[%clk 0:02:39]}  Bf5 {[%clk 0:02:15]} 10. h3 {[%clk 0:02:34]}  Nh6 {[%clk 0:02:15]} 11. Na3 {[%clk 0:02:22]}  Qa6 {[%clk 0:02:10]} 12. d4 {[%clk 0:02:19]}  Qxe2+ {[%clk 0:02:08]} 13. Kxe2 {[%clk 0:02:20]}  Be4 {[%clk 0:02:07]} 14. Kf2 {[%clk 0:02:04]}  Nd7 {[%clk 0:02:06]} 15. Ng5 {[%clk 0:02:02]}  Bxg2 {[%clk 0:02:04]} 16. Kxg2 {[%clk 0:02:03]}  Nf8 {[%clk 0:02:01]} 17. Re1 {[%clk 0:02:00]}  Kd7 {[%clk 0:01:58]} 18. Nc2 {[%clk 0:01:44]}  f6 {[%clk 0:01:56]} 19. exf6 {[%clk 0:01:42]}  exf6 {[%clk 0:01:56]} 20. Nf3 {[%clk 0:01:40]}  Nf5 {[%clk 0:01:56]} 21. Ne3 {[%clk 0:01:37]}  Nd6 {[%clk 0:01:56]} 22. Nd2 {[%clk 0:01:20]}  Re8 {[%clk 0:01:54]} 23. b3 {[%clk 0:01:16]}  Ne6 {[%clk 0:01:48]} 24. Ba3 {[%clk 0:01:15]}  Nb5 {[%clk 0:01:48]} 25. Bb2 {[%clk 0:01:14]}  Bh6 {[%clk 0:01:47]} 26. Nf3 {[%clk 0:01:08]}  Nd6 {[%clk 0:01:35]} 27. f5 {[%clk 0:01:03]}  Ng7 {[%clk 0:01:31]} 28. Bc1 {[%clk 0:00:32]}  Bxe3 {[%clk 0:01:31]} 29. Bxe3 {[%clk 0:00:31]}  Ngxf5 {[%clk 0:01:31]} 30. Bf4 {[%clk 0:00:30]}  Ne4 {[%clk 0:01:31]} 31. c4 {[%clk 0:00:28]}  g5 {[%clk 0:01:31]} 32. Bc1 {[%clk 0:00:25]}  Nexg3 {[%clk 0:01:31]} 33. cxd5 {[%clk 0:00:23]}  cxd5 {[%clk 0:01:30]} 34. Ba3 {[%clk 0:00:18]}  Ne4 {[%clk 0:01:21]} 35. Rac1 {[%clk 0:00:16]}  g4 {[%clk 0:01:19]} 36. hxg4 {[%clk 0:00:10]}  hxg4 {[%clk 0:01:20]} 37. Ng1 {[%clk 0:00:10]}  Nh4+ {[%clk 0:01:14]} 38. Kf1 {[%clk 0:00:07]}  g3 {[%clk 0:01:14]} 0-1


[Site "https://www.chess.com"]

[Event "Titled Tuesday Blitz January 31 Early 2023"]
[White "Mohammed, Dilshad"]
[Black "Mohammad Fahad, Rahman"]
[WhiteFideId "5050421"]
[BlackFideId "10207791"]
[WhiteElo "2103"]
[BlackElo "2396"]
[Result "0-1"]
[Round "01"]
[TimeControl "180+2"]
[Date "2023.01.31"]
[WhiteClock "0:00:02"]
[BlackClock "0:01:07"]

1. Nf3 {[%clk 0:02:43]}  Nf6 {[%clk 0:02:58]} 2. c4 {[%clk 0:02:43]}  c6 {[%clk 0:02:58]} 3. Nc3 {[%clk 0:02:42]}  d5 {[%clk 0:02:58]} 4. e3 {[%clk 0:02:41]}  g6 {[%clk 0:02:58]} 5. b3 {[%clk 0:02:41]}  Bg7 {[%clk 0:02:58]} 6. Bb2 {[%clk 0:02:41]}  O-O {[%clk 0:02:59]} 7. d4 {[%clk 0:02:42]}  a6 {[%clk 0:02:59]} 8. cxd5 {[%clk 0:02:40]}  Nxd5 {[%clk 0:02:54]} 9. Bd3 {[%clk 0:02:41]}  Bg4 {[%clk 0:02:49]} 10. O-O {[%clk 0:02:40]}  e5 {[%clk 0:02:48]} 11. Nxd5 {[%clk 0:02:32]}  Qxd5 {[%clk 0:02:49]} 12. e4 {[%clk 0:02:26]}  Qe6 {[%clk 0:02:49]} 13. dxe5 {[%clk 0:02:22]}  Rd8 {[%clk 0:02:48]} 14. Qe2 {[%clk 0:02:19]}  Nd7 {[%clk 0:02:47]} 15. h3 {[%clk 0:02:18]}  Bxf3 {[%clk 0:02:47]} 16. Qxf3 {[%clk 0:02:18]}  Nxe5 {[%clk 0:02:45]} 17. Bxe5 {[%clk 0:02:16]}  Qxe5 {[%clk 0:02:45]} 18. Rad1 {[%clk 0:02:16]}  b5 {[%clk 0:02:40]} 19. Rc1 {[%clk 0:02:14]}  c5 {[%clk 0:02:39]} 20. Rfd1 {[%clk 0:02:13]}  Rd4 {[%clk 0:02:38]} 21. Bf1 {[%clk 0:02:11]}  Rad8 {[%clk 0:02:36]} 22. Rxd4 {[%clk 0:02:09]}  Rxd4 {[%clk 0:02:36]} 23. a4 {[%clk 0:02:01]}  bxa4 {[%clk 0:02:34]} 24. bxa4 {[%clk 0:02:00]}  Rxa4 {[%clk 0:02:31]} 25. Bc4 {[%clk 0:01:59]}  Bf6 {[%clk 0:02:27]} 26. Bxf7+ {[%clk 0:01:55]}  Kg7 {[%clk 0:02:22]} 27. Bd5 {[%clk 0:01:49]}  Ra1 {[%clk 0:02:13]} 28. Rxa1 {[%clk 0:01:46]}  Qxa1+ {[%clk 0:02:14]} 29. Kh2 {[%clk 0:01:46]}  Qd4 {[%clk 0:02:12]} 30. g3 {[%clk 0:01:35]}  c4 {[%clk 0:02:08]} 31. Qe2 {[%clk 0:01:32]}  c3 {[%clk 0:02:08]} 32. Kg2 {[%clk 0:01:32]}  Qc5 {[%clk 0:02:00]} 33. Bb3 {[%clk 0:01:25]}  a5 {[%clk 0:01:59]} 34. f4 {[%clk 0:01:25]}  Qb4 {[%clk 0:01:51]} 35. Bc2 {[%clk 0:01:24]}  a4 {[%clk 0:01:51]} 36. e5 {[%clk 0:01:24]}  Be7 {[%clk 0:01:52]} 37. f5 {[%clk 0:01:15]}  gxf5 {[%clk 0:01:51]} 38. Bxf5 {[%clk 0:01:16]}  Qd4 {[%clk 0:01:26]} 39. Qh5 {[%clk 0:00:57]}  Qd2+ {[%clk 0:01:20]} 40. Kf1 {[%clk 0:00:57]}  Qh6 {[%clk 0:01:16]} 41. Qg4+ {[%clk 0:00:56]}  Qg5 {[%clk 0:01:16]} 42. Qe4 {[%clk 0:00:19]}  a3 {[%clk 0:01:11]} 43. Be6 {[%clk 0:00:18]}  Qc1+ {[%clk 0:01:07]} 44. Kg2 {[%clk 0:00:17]}  Qd2+ {[%clk 0:01:07]} 45. Kf3 {[%clk 0:00:16]}  c2 {[%clk 0:01:08]} 46. Qg4+ {[%clk 0:00:03]}  Qg5 {[%clk 0:01:06]} 47. Qf4 {[%clk 0:00:02]}  Qxf4+ {[%clk 0:01:06]} 48. gxf4 {[%clk 0:00:02]}  c1=Q {[%clk 0:01:07]} 0-1


[Site "https://www.chess.com"]

[Event "Titled Tuesday Blitz January 31 Early 2023"]
[White "Begmuratov, Khumoyun"]
[Black "Mushini Ajay"]
[WhiteFideId "14210207"]
[BlackFideId "35066188"]
[WhiteElo "2387"]
[BlackElo "2310"]
[Result "1-0"]
[Round "01"]
[TimeControl "180+2"]
[Date "2023.01.31"]
[WhiteClock "0:00:21"]
[BlackClock "0:00:04"]

1. e4 {[%clk 0:02:59]}  c5 {[%clk 0:02:38]} 2. Nc3 {[%clk 0:02:57]}  e6 {[%clk 0:02:37]} 3. g3 {[%clk 0:02:56]}  a6 {[%clk 0:02:37]} 4. Bg2 {[%clk 0:02:56]}  b5 {[%clk 0:02:35]} 5. d3 {[%clk 0:02:49]}  Bb7 {[%clk 0:02:28]} 6. Nge2 {[%clk 0:02:46]}  b4 {[%clk 0:02:19]} 7. Nb1 {[%clk 0:02:45]}  Nf6 {[%clk 0:02:18]} 8. O-O {[%clk 0:02:44]}  d5 {[%clk 0:02:18]} 9. exd5 {[%clk 0:02:41]}  Bxd5 {[%clk 0:02:18]} 10. Nd2 {[%clk 0:02:36]}  Bxg2 {[%clk 0:02:17]} 11. Kxg2 {[%clk 0:02:37]}  Nc6 {[%clk 0:02:17]} 12. Ne4 {[%clk 0:02:31]}  Be7 {[%clk 0:02:09]} 13. Be3 {[%clk 0:02:25]}  Nxe4 {[%clk 0:02:07]} 14. dxe4 {[%clk 0:02:25]}  Qb6 {[%clk 0:02:05]} 15. c3 {[%clk 0:02:16]}  a5 {[%clk 0:02:04]} 16. Qa4 {[%clk 0:02:05]}  O-O {[%clk 0:01:55]} 17. Rfd1 {[%clk 0:02:05]}  Rfd8 {[%clk 0:01:52]} 18. cxb4 {[%clk 0:01:55]}  axb4 {[%clk 0:01:51]} 19. Rxd8+ {[%clk 0:01:54]}  Rxd8 {[%clk 0:01:50]} 20. Rc1 {[%clk 0:01:54]}  Ne5 {[%clk 0:01:48]} 21. Qc2 {[%clk 0:01:32]}  Qb7 {[%clk 0:01:38]} 22. f3 {[%clk 0:01:31]}  c4 {[%clk 0:01:23]} 23. Rd1 {[%clk 0:01:26]}  Rd3 {[%clk 0:01:17]} 24. Qc1 {[%clk 0:01:03]}  Nxf3 {[%clk 0:00:54]} 25. Kxf3 {[%clk 0:00:52]}  f5 {[%clk 0:00:50]} 26. Nf4 {[%clk 0:00:35]}  Qxe4+ {[%clk 0:00:48]} 27. Kf2 {[%clk 0:00:31]}  Rd6 {[%clk 0:00:15]} 28. Re1 {[%clk 0:00:26]}  e5 {[%clk 0:00:10]} 29. Bc5 {[%clk 0:00:22]}  Qc6 {[%clk 0:00:05]} 30. Qxc4+ {[%clk 0:00:21]}  Kf8 {[%clk 0:00:04]} 31. Rxe5 {[%clk 0:00:21]} 1-0


[Site "https://www.chess.com"]

[Event "Titled Tuesday Blitz January 31 Early 2023"]
[White "Liu, Casper"]
[Black "Skliarov, Viktor"]
[WhiteFideId "1454153"]
[BlackFideId "14106736"]
[WhiteElo "2278"]
[BlackElo "2383"]
[Result "0-1"]
[Round "01"]
[TimeControl "180+2"]
[Date "2023.01.31"]
[WhiteClock "0:01:40"]
[BlackClock "0:01:57"]

1. d4 {[%clk 0:02:59]}  Nf6 {[%clk 0:02:53]} 2. c4 {[%clk 0:02:59]}  e6 {[%clk 0:02:54]} 3. Nc3 {[%clk 0:03:00]}  Bb4 {[%clk 0:02:51]} 4. e3 {[%clk 0:03:01]}  b6 {[%clk 0:02:51]} 5. Bd3 {[%clk 0:03:01]}  Bb7 {[%clk 0:02:50]} 6. Nf3 {[%clk 0:03:00]}  Ne4 {[%clk 0:02:50]} 7. Qc2 {[%clk 0:02:58]}  f5 {[%clk 0:02:49]} 8. O-O {[%clk 0:02:59]}  Bxc3 {[%clk 0:02:49]} 9. bxc3 {[%clk 0:02:59]}  O-O {[%clk 0:02:49]} 10. Nd2 {[%clk 0:02:58]}  Qh4 {[%clk 0:02:48]} 11. Nxe4 {[%clk 0:02:56]}  fxe4 {[%clk 0:02:47]} 12. Be2 {[%clk 0:02:56]}  d6 {[%clk 0:02:47]} 13. Bd2 {[%clk 0:02:47]}  Nd7 {[%clk 0:02:46]} 14. f3 {[%clk 0:02:43]}  exf3 {[%clk 0:02:45]} 15. Bxf3 {[%clk 0:02:44]}  Bxf3 {[%clk 0:02:44]} 16. Rxf3 {[%clk 0:02:44]}  Rxf3 {[%clk 0:02:44]} 17. gxf3 {[%clk 0:02:45]}  Rf8 {[%clk 0:02:42]} 18. f4 {[%clk 0:02:26]}  Qg4+ {[%clk 0:02:35]} 19. Kh1 {[%clk 0:02:26]}  Qf3+ {[%clk 0:02:34]} 20. Kg1 {[%clk 0:02:26]}  Rf6 {[%clk 0:02:34]} 21. Rf1 {[%clk 0:02:25]}  Qg4+ {[%clk 0:02:15]} 22. Kh1 {[%clk 0:02:24]}  Qe2 {[%clk 0:02:14]} 23. Qd1 {[%clk 0:02:10]}  Qxc4 {[%clk 0:02:11]} 24. e4 {[%clk 0:02:02]}  Qd3 {[%clk 0:02:08]} 25. Qf3 {[%clk 0:01:43]}  Qxd2 {[%clk 0:02:06]} 26. e5 {[%clk 0:01:40]}  dxe5 {[%clk 0:02:02]} 27. dxe5 {[%clk 0:01:41]}  Nxe5 {[%clk 0:02:00]} 28. Qa8+ {[%clk 0:01:39]}  Rf8 {[%clk 0:02:00]} 29. Qe4 {[%clk 0:01:40]}  Qd5 {[%clk 0:01:57]} 0-1


[Site "https://www.chess.com"]

[Event "Titled Tuesday Blitz January 31 Early 2023"]
[White "Xie, Bryan"]
[Black "Milikow, Yoav"]
[WhiteFideId "30941296"]
[BlackFideId "2822237"]
[WhiteElo "2361"]
[BlackElo "2394"]
[Result "0-1"]
[Round "01"]
[TimeControl "180+2"]
[Date "2023.01.31"]
[WhiteClock "0:00:03"]
[BlackClock "0:01:51"]

1. e4 {[%clk 0:02:57]}  e5 {[%clk 0:02:56]} 2. Nf3 {[%clk 0:02:57]}  Nc6 {[%clk 0:02:49]} 3. Bc4 {[%clk 0:02:58]}  Nf6 {[%clk 0:02:48]} 4. d3 {[%clk 0:02:52]}  Bc5 {[%clk 0:02:47]} 5. O-O {[%clk 0:02:48]}  d6 {[%clk 0:02:46]} 6. c3 {[%clk 0:02:46]}  a5 {[%clk 0:02:46]} 7. a4 {[%clk 0:02:42]}  O-O {[%clk 0:02:45]} 8. Nbd2 {[%clk 0:02:36]}  Be6 {[%clk 0:02:44]} 9. Bb5 {[%clk 0:02:30]}  Ba7 {[%clk 0:02:34]} 10. Qe2 {[%clk 0:01:44]}  Ne7 {[%clk 0:02:30]} 11. Ng5 {[%clk 0:01:36]}  Bg4 {[%clk 0:02:27]} 12. Ngf3 {[%clk 0:01:17]}  Ng6 {[%clk 0:02:26]} 13. h3 {[%clk 0:01:10]}  Nf4 {[%clk 0:02:25]} 14. Qe1 {[%clk 0:01:04]}  Qc8 {[%clk 0:02:11]} 15. Kh2 {[%clk 0:00:10]}  Bxh3 {[%clk 0:02:05]} 16. g3 {[%clk 0:00:10]}  Ng4+ {[%clk 0:01:52]} 17. Kg1 {[%clk 0:00:07]}  Bxf1 {[%clk 0:01:51]} 18. Qxf1 {[%clk 0:00:05]}  Bxf2+ {[%clk 0:01:51]} 19. Qxf2 {[%clk 0:00:03]}  Nxf2 {[%clk 0:01:52]} 20. gxf4 {[%clk 0:00:03]}  Nh3+ {[%clk 0:01:51]} 0-1


[Site "https://www.chess.com"]

[Event "Titled Tuesday Blitz January 31 Early 2023"]
[White "Sipila, Vilka"]
[Black "Mrudul Dehankar"]
[WhiteFideId "505455"]
[BlackFideId "25096990"]
[WhiteElo "2427"]
[BlackElo "2030"]
[Result "1/2-1/2"]
[Round "01"]
[TimeControl "180+2"]
[Date "2023.01.31"]
[WhiteClock "0:00:05"]
[BlackClock "0:00:04"]

1. b3 {[%clk 0:03:00]}  Nf6 {[%clk 0:02:57]} 2. Bb2 {[%clk 0:03:01]}  g6 {[%clk 0:02:56]} 3. Nf3 {[%clk 0:03:01]}  Bg7 {[%clk 0:02:55]} 4. g3 {[%clk 0:03:02]}  b6 {[%clk 0:02:54]} 5. Bg2 {[%clk 0:03:01]}  Bb7 {[%clk 0:02:55]} 6. O-O {[%clk 0:03:01]}  O-O {[%clk 0:02:55]} 7. c4 {[%clk 0:03:00]}  d6 {[%clk 0:02:55]} 8. d4 {[%clk 0:02:59]}  Nbd7 {[%clk 0:02:55]} 9. Re1 {[%clk 0:02:58]}  e6 {[%clk 0:02:52]} 10. Qc2 {[%clk 0:02:51]}  Qe7 {[%clk 0:02:48]} 11. Nc3 {[%clk 0:02:50]}  e5 {[%clk 0:02:47]} 12. e4 {[%clk 0:02:48]}  Rfe8 {[%clk 0:02:25]} 13. d5 {[%clk 0:02:41]}  a5 {[%clk 0:02:18]} 14. a3 {[%clk 0:02:39]}  h6 {[%clk 0:02:08]} 15. b4 {[%clk 0:02:36]}  Nh7 {[%clk 0:02:03]} 16. Nb5 {[%clk 0:02:34]}  Rec8 {[%clk 0:01:59]} 17. Bc3 {[%clk 0:02:07]}  c6 {[%clk 0:01:43]} 18. dxc6 {[%clk 0:02:06]}  Rxc6 {[%clk 0:01:44]} 19. Nd2 {[%clk 0:02:01]}  Ba6 {[%clk 0:01:20]} 20. Qd3 {[%clk 0:01:54]}  Rac8 {[%clk 0:01:12]} 21. a4 {[%clk 0:01:53]}  axb4 {[%clk 0:01:05]} 22. Bxb4 {[%clk 0:01:52]}  Nc5 {[%clk 0:01:05]} 23. Qb1 {[%clk 0:01:47]}  Nf8 {[%clk 0:00:52]} 24. Nc3 {[%clk 0:01:46]}  Nfe6 {[%clk 0:00:48]} 25. Nd5 {[%clk 0:01:45]}  Qd8 {[%clk 0:00:44]} 26. a5 {[%clk 0:01:43]}  bxa5 {[%clk 0:00:40]} 27. Bxa5 {[%clk 0:01:43]}  Qe8 {[%clk 0:00:32]} 28. Nb4 {[%clk 0:01:43]}  Rb8 {[%clk 0:00:26]} 29. Qa2 {[%clk 0:01:39]}  Rcc8 {[%clk 0:00:21]} 30. Bh3 {[%clk 0:01:27]}  Bb7 {[%clk 0:00:20]} 31. Bb6 {[%clk 0:01:18]}  Ra8 {[%clk 0:00:19]} 32. Ba7 {[%clk 0:01:17]}  Rc7 {[%clk 0:00:18]} 33. Qa5 {[%clk 0:01:12]}  Bc8 {[%clk 0:00:12]} 34. Nd5 {[%clk 0:01:04]}  Rcxa7 {[%clk 0:00:12]} 35. Qxa7 {[%clk 0:01:05]}  Rxa7 {[%clk 0:00:13]} 36. Rxa7 {[%clk 0:01:04]}  Bd7 {[%clk 0:00:13]} 37. Rea1 {[%clk 0:00:59]}  Kh7 {[%clk 0:00:12]} 38. Ra8 {[%clk 0:00:59]}  Nd8 {[%clk 0:00:11]} 39. Nc7 {[%clk 0:00:47]}  Qe7 {[%clk 0:00:11]} 40. Bxd7 {[%clk 0:00:44]}  Qxd7 {[%clk 0:00:11]} 41. Nd5 {[%clk 0:00:42]}  Ndb7 {[%clk 0:00:11]} 42. R1a7 {[%clk 0:00:41]}  Qc6 {[%clk 0:00:11]} 43. Rb8 {[%clk 0:00:39]}  Qd7 {[%clk 0:00:08]} 44. Nb3 {[%clk 0:00:36]}  Qg4 {[%clk 0:00:07]} 45. Rbxb7 {[%clk 0:00:33]}  Nxb7 {[%clk 0:00:07]} 46. Rxb7 {[%clk 0:00:34]}  Qxe4 {[%clk 0:00:07]} 47. Rxf7 {[%clk 0:00:29]}  Qb1+ {[%clk 0:00:07]} 48. Kg2 {[%clk 0:00:28]}  Qxb3 {[%clk 0:00:08]} 49. Rd7 {[%clk 0:00:24]}  Qxc4 {[%clk 0:00:07]} 50. Nf6+ {[%clk 0:00:24]}  Kh8 {[%clk 0:00:07]} 51. Rd8+ {[%clk 0:00:24]}  Bf8 {[%clk 0:00:08]} 52. Nd7 {[%clk 0:00:17]}  Qc6+ {[%clk 0:00:06]} 53. f3 {[%clk 0:00:13]}  Qc2+ {[%clk 0:00:06]} 54. Kg1 {[%clk 0:00:13]}  Kg7 {[%clk 0:00:07]} 55. Nxf8 {[%clk 0:00:12]}  Kf7 {[%clk 0:00:07]} 56. Rb8 {[%clk 0:00:10]}  Qc5+ {[%clk 0:00:06]} 57. Kg2 {[%clk 0:00:10]}  Qc2+ {[%clk 0:00:06]} 58. Kh3 {[%clk 0:00:11]}  Qf5+ {[%clk 0:00:05]} 59. Kg2 {[%clk 0:00:11]}  Ke7 {[%clk 0:00:05]} 60. g4 {[%clk 0:00:07]}  Qc2+ {[%clk 0:00:05]} 61. Kg3 {[%clk 0:00:08]}  d5 {[%clk 0:00:05]} 62. Ra8 {[%clk 0:00:07]}  e4 {[%clk 0:00:06]} 63. Nxg6+ {[%clk 0:00:06]}  Kf6 {[%clk 0:00:05]} 64. Nf4 {[%clk 0:00:07]}  exf3 {[%clk 0:00:05]} 65. Nxd5+ {[%clk 0:00:07]}  Ke5 {[%clk 0:00:06]} 66. Ne3 {[%clk 0:00:07]}  Qc7 {[%clk 0:00:02]} 67. Rf8 {[%clk 0:00:04]}  Kd4+ {[%clk 0:00:02]} 68. Kxf3 {[%clk 0:00:04]}  Qb7+ {[%clk 0:00:03]} 69. Kf2 {[%clk 0:00:04]}  Qb2+ {[%clk 0:00:03]} 70. Kf3 {[%clk 0:00:04]}  Qb7+ {[%clk 0:00:03]} 71. Kf2 {[%clk 0:00:04]}  Qe7 {[%clk 0:00:04]} 72. Rf4+ {[%clk 0:00:04]}  Kd3 {[%clk 0:00:03]} 73. Rf3 {[%clk 0:00:04]}  Qh4+ {[%clk 0:00:04]} 74. Kg2 {[%clk 0:00:04]}  Ke2 {[%clk 0:00:04]} 75. h3 {[%clk 0:00:03]}  Qe7 {[%clk 0:00:04]} 76. Nf5 {[%clk 0:00:03]}  Qb4 {[%clk 0:00:04]} 77. Ng3+ {[%clk 0:00:03]}  Kd2 {[%clk 0:00:04]} 78. Nf1+ {[%clk 0:00:04]}  Ke1 {[%clk 0:00:03]} 79. Ng3 {[%clk 0:00:05]}  Kd2 {[%clk 0:00:04]} 80. Rf2+ {[%clk 0:00:04]}  Ke3 {[%clk 0:00:04]} 81. Rf3+ {[%clk 0:00:05]}  Kd2 {[%clk 0:00:04]} 1/2-1/2


[Site "https://www.chess.com"]